[Event "*** Titled Tuesday Blitz"]
[Site "Chess.com"]
[Date "2018.08.07"]
[Round "5"]
[White "NateSolon"]
[Black "ShimanovAlex"]
[Result "1/2-1/2"]
[WhiteElo "2513"]
[BlackElo "2762"]
[TimeControl "180+2"]
[EndTime "14:05:00 PDT"]
[Termination "Game drawn by agreement"]

1. d4 {[%clk 0:03:01.9]} 1... g6 {[%clk 0:03:00]} 2. e4 {[%clk 0:03:02]} 2...
Bg7 {[%clk 0:03:01.2]} 3. Nc3 {[%clk 0:03:02.9]} 3... d6 {[%clk 0:03:02]} 4. f4
{[%clk 0:03:03.8]} 4... Nf6 {[%clk 0:03:02.6]} 5. Bd3 {[%clk 0:03:04.6]} 5...
O-O {[%clk 0:03:03.8]} 6. Nf3 {[%clk 0:03:05.4]} 6... Nc6 {[%clk 0:03:02.7]} 7.
Be2 {[%clk 0:03:01.3]} 7... Bg4 {[%clk 0:02:58]} 8. Be3 {[%clk 0:02:52.5]} 8...
Bxf3 {[%clk 0:02:54.6]} 9. Bxf3 {[%clk 0:02:53.1]} 9... e5 {[%clk 0:02:56.5]}
10. fxe5 {[%clk 0:02:52.8]} 10... dxe5 {[%clk 0:02:58.4]} 11. d5 {[%clk
0:02:53.7]} 11... Nd4 {[%clk 0:02:59.8]} 12. O-O {[%clk 0:02:38.2]} 12... c6
{[%clk 0:02:59.9]} 13. Qd2 {[%clk 0:02:33.3]} 13... Rc8 {[%clk 0:02:56.6]} 14.
Rad1 {[%clk 0:02:27.1]} 14... cxd5 {[%clk 0:02:50.4]} 15. exd5 {[%clk
0:02:27.9]} 15... Ne8 {[%clk 0:02:51.1]} 16. Kh1 {[%clk 0:02:15.4]} 16... Nd6
{[%clk 0:02:51.7]} 17. Bxd4 {[%clk 0:01:57.3]} 17... exd4 {[%clk 0:02:52.1]} 18.
Ne4 {[%clk 0:01:58.5]} 18... Nc4 {[%clk 0:02:53]} 19. Qb4 {[%clk 0:01:43.7]}
19... Ne3 {[%clk 0:02:54]} 20. Qxb7 {[%clk 0:01:38.6]} 20... Nxf1 {[%clk
0:02:47.5]} 21. Rxf1 {[%clk 0:01:38.9]} 21... Rxc2 {[%clk 0:02:49.1]} 22. d6
{[%clk 0:01:35.7]} 22... d3 {[%clk 0:02:44.7]} 23. Qb3 {[%clk 0:01:33.2]} 23...
Rxb2 {[%clk 0:02:44.5]} 24. Qxd3 {[%clk 0:01:33.8]} 24... Rxa2 {[%clk
0:02:43.8]} 25. Nc5 {[%clk 0:01:31.5]} 25... Qb6 {[%clk 0:02:38.4]} 26. Nd7
{[%clk 0:01:28.7]} 26... Qd4 {[%clk 0:02:16.8]} 27. Qxd4 {[%clk 0:01:20.3]}
27... Bxd4 {[%clk 0:02:18.7]} 28. Nxf8 {[%clk 0:01:20.7]} 28... Kxf8 {[%clk
0:02:18.5]} 29. Bd5 {[%clk 0:01:12.1]} 29... Ra1 {[%clk 0:02:13.2]} 30. Rxa1
{[%clk 0:01:07.9]} 30... Bxa1 {[%clk 0:02:15.1]} 31. d7 {[%clk 0:01:07.7]} 31...
Bf6 {[%clk 0:02:14.4]} 32. g4 {[%clk 0:01:02.8]} 32... Bd8 {[%clk 0:02:12.7]}
33. Kg2 {[%clk 0:01:02.7]} 33... Ke7 {[%clk 0:02:13.1]} 34. Bc6 {[%clk
0:01:03.8]} 34... Kd6 {[%clk 0:02:13.8]} 35. Ba4 {[%clk 0:01:04.2]} 35... a5
{[%clk 0:02:13.4]} 36. Kf3 {[%clk 0:01:05]} 36... Ke5 {[%clk 0:02:10.2]} 37. h3
{[%clk 0:01:01.9]} 37... h6 {[%clk 0:02:04.4]} 38. Bb3 {[%clk 0:01:01.5]} 38...
f5 {[%clk 0:02:03.1]} 39. gxf5 {[%clk 0:01:01.9]} 39... gxf5 {[%clk 0:02:05]}
40. Bc2 {[%clk 0:01:00.9]} 40... f4 {[%clk 0:01:59.1]} 41. Bb3 {[%clk
0:00:56.3]} 41... Kf5 {[%clk 0:01:59]} 42. Bc2+ {[%clk 0:00:56.8]} 42... Kg5
{[%clk 0:01:58]} 43. Bb3 {[%clk 0:00:52.2]} 43... Bc7 {[%clk 0:01:58.3]} 44. Bc2
{[%clk 0:00:52.3]} 44... Kh4 {[%clk 0:01:56.8]} 45. Kg2 {[%clk 0:00:52.8]} 45...
h5 {[%clk 0:01:50]} 46. Bb3 {[%clk 0:00:52]} 46... Kg5 {[%clk 0:01:43.8]} 47.
Kf3 {[%clk 0:00:52.7]} 47... Kh4 {[%clk 0:01:44.8]} 48. Kg2 {[%clk 0:00:53.1]}
48... f3+ {[%clk 0:01:44.4]} 49. Kxf3 {[%clk 0:00:54]} 49... Kxh3 {[%clk
0:01:46.3]} 50. Ke4 {[%clk 0:00:31.2]} 50... h4 {[%clk 0:01:44]} 51. Kf3 {[%clk
0:00:27.8]} 51... Kh2 {[%clk 0:01:43.8]} 52. Be6 {[%clk 0:00:20.6]} 52... a4
{[%clk 0:01:43.4]} 53. Ke4 {[%clk 0:00:20.9]} 53... h3 {[%clk 0:01:40.7]} 54.
Kd3 {[%clk 0:00:21.6]} 54... Kg3 {[%clk 0:01:30.6]} 55. Kc4 {[%clk 0:00:21.5]}
55... h2 {[%clk 0:01:29.2]} 56. Bd5 {[%clk 0:00:22.3]} 1/2-1/2

[Event "*** Titled Tuesday Blitz"]
[Site "Chess.com"]
[Date "2018.08.07"]
[Round "5"]
[White "sandager"]
[Black "norwaytoadog"]
[Result "0-1"]
[WhiteElo "2037"]
[BlackElo "2136"]
[TimeControl "180+2"]
[EndTime "14:05:00 PDT"]
[Termination "norwaytoadog won by resignation"]

1. e4 {[%clk 0:02:56]} 1... e5 {[%clk 0:02:59.4]} 2. Nf3 {[%clk 0:02:56.7]} 2...
Nc6 {[%clk 0:02:56.2]} 3. Bb5 {[%clk 0:02:57.9]} 3... a6 {[%clk 0:02:57]} 4. Ba4
{[%clk 0:02:59.4]} 4... Nf6 {[%clk 0:02:58]} 5. O-O {[%clk 0:03:00.7]} 5... Be7
{[%clk 0:02:59.1]} 6. Re1 {[%clk 0:03:01.4]} 6... b5 {[%clk 0:03:00.4]} 7. Bb3
{[%clk 0:03:02.7]} 7... d6 {[%clk 0:03:01.8]} 8. d3 {[%clk 0:03:03.6]} 8... O-O
{[%clk 0:03:01.7]} 9. Nbd2 {[%clk 0:03:03.7]} 9... Bb7 {[%clk 0:02:59.9]} 10. a4
{[%clk 0:03:04.1]} 10... h6 {[%clk 0:02:56.7]} 11. c3 {[%clk 0:03:04.3]} 11...
Re8 {[%clk 0:02:57.4]} 12. Nf1 {[%clk 0:02:59.7]} 12... Bf8 {[%clk 0:02:54.6]}
13. Ng3 {[%clk 0:02:59.9]} 13... Qd7 {[%clk 0:02:25.7]} 14. Nf5 {[%clk
0:02:57.5]} 14... Kh7 {[%clk 0:02:22.1]} 15. h3 {[%clk 0:02:41.2]} 15... g6
{[%clk 0:02:17.6]} 16. Ne3 {[%clk 0:02:40.3]} 16... Bg7 {[%clk 0:02:13.7]} 17.
Nh2 {[%clk 0:02:34.5]} 17... Nd8 {[%clk 0:01:58.2]} 18. Qf3 {[%clk 0:02:19.8]}
18... Ne6 {[%clk 0:01:50.8]} 19. Nhg4 {[%clk 0:02:16.9]} 19... Nh5 {[%clk
0:01:38.7]} 20. Nd5 {[%clk 0:02:03.9]} 20... Nc5 {[%clk 0:01:19.9]} 21. Bc2
{[%clk 0:01:40.5]} 21... bxa4 {[%clk 0:00:46.7]} 22. Bxh6 {[%clk 0:01:39]} 22...
Bxd5 {[%clk 0:00:42.4]} 23. Bxg7 {[%clk 0:01:39.3]} 23... Bb3 {[%clk 0:00:21]}
24. Nf6+ {[%clk 0:01:02.1]} 24... Nxf6 {[%clk 0:00:20.1]} 25. Bxf6 {[%clk
0:01:03.5]} 25... Qe6 {[%clk 0:00:14.2]} 26. Bxb3 {[%clk 0:01:00]} 26... axb3
{[%clk 0:00:14.4]} 27. g4 {[%clk 0:00:53.3]} 27... Nd7 {[%clk 0:00:14.4]} 28.
Bg5 {[%clk 0:00:52.2]} 28... f6 {[%clk 0:00:13.7]} 29. Be3 {[%clk 0:00:52.4]}
29... Kg7 {[%clk 0:00:15]} 30. Qe2 {[%clk 0:00:52.7]} 30... Rh8 {[%clk
0:00:15.6]} 31. Kg2 {[%clk 0:00:53.4]} 31... a5 {[%clk 0:00:15.7]} 32. f3 {[%clk
0:00:54.2]} 32... a4 {[%clk 0:00:16.4]} 33. d4 {[%clk 0:00:55.5]} 33... c5
{[%clk 0:00:15.8]} 34. Rad1 {[%clk 0:00:53]} 34... cxd4 {[%clk 0:00:15.4]} 35.
cxd4 {[%clk 0:00:53.5]} 35... Rhb8 {[%clk 0:00:16]} 36. dxe5 {[%clk 0:00:52.4]}
36... Nxe5 {[%clk 0:00:16.5]} 37. f4 {[%clk 0:00:52.4]} 37... Nc4 {[%clk
0:00:17.3]} 38. Rd5 {[%clk 0:00:52.4]} 38... Qxe4+ {[%clk 0:00:17.3]} 39. Qf3
{[%clk 0:00:53.3]} 39... Qxf3+ {[%clk 0:00:16.3]} 40. Kxf3 {[%clk 0:00:53.4]}
40... Nxe3 {[%clk 0:00:16.6]} 41. Rxe3 {[%clk 0:00:54]} 41... a3 {[%clk
0:00:17.8]} 42. bxa3 {[%clk 0:00:52.8]} 42... b2 {[%clk 0:00:18.7]} 43. Re7+
{[%clk 0:00:49.8]} 43... Kf8 {[%clk 0:00:19.6]} 44. Re6 {[%clk 0:00:45.9]} 44...
b1=Q {[%clk 0:00:19.7]} 45. Rxf6+ {[%clk 0:00:44.1]} 45... Kg7 {[%clk
0:00:20.8]} 46. g5 {[%clk 0:00:44.5]} 46... Rb3+ {[%clk 0:00:21]} 47. Kg2 {[%clk
0:00:38.3]} 47... Qa2+ {[%clk 0:00:20.7]} 0-1

[Event "*** Titled Tuesday Blitz"]
[Site "Chess.com"]
[Date "2018.08.07"]
[Round "5"]
[White "Chakraborty-ARZ"]
[Black "JSMastropiero"]
[Result "1/2-1/2"]
[WhiteElo "2426"]
[BlackElo "2321"]
[TimeControl "180+2"]
[EndTime "14:05:04 PDT"]
[Termination "Game drawn - insufficient material"]

1. d4 {[%clk 0:03:01.9]} 1... Nf6 {[%clk 0:02:58.2]} 2. Bf4 {[%clk 0:03:02.7]}
2... d5 {[%clk 0:02:55.9]} 3. e3 {[%clk 0:03:03.8]} 3... e6 {[%clk 0:02:57]} 4.
Bd3 {[%clk 0:03:04.6]} 4... Bd6 {[%clk 0:02:56.8]} 5. Nd2 {[%clk 0:03:04]} 5...
c5 {[%clk 0:02:55.4]} 6. c3 {[%clk 0:03:02.3]} 6... Nc6 {[%clk 0:02:55.3]} 7.
Ngf3 {[%clk 0:03:01.3]} 7... O-O {[%clk 0:02:55.5]} 8. Bg3 {[%clk 0:03:02]} 8...
b6 {[%clk 0:02:55.4]} 9. O-O {[%clk 0:03:02.3]} 9... Bb7 {[%clk 0:02:52.1]} 10.
Ne5 {[%clk 0:03:02.8]} 10... Ne7 {[%clk 0:02:48.6]} 11. f4 {[%clk 0:02:51.1]}
11... Nf5 {[%clk 0:02:48.7]} 12. Bf2 {[%clk 0:02:51.4]} 12... Be7 {[%clk
0:02:48.9]} 13. Qf3 {[%clk 0:02:50.4]} 13... Nd6 {[%clk 0:02:47.6]} 14. Qh3
{[%clk 0:02:41.1]} 14... Nfe4 {[%clk 0:02:35.3]} 15. Ndf3 {[%clk 0:02:36.7]}
15... Rc8 {[%clk 0:02:00]} 16. Rad1 {[%clk 0:02:36.5]} 16... cxd4 {[%clk
0:01:58.2]} 17. cxd4 {[%clk 0:02:28.3]} 17... Nc4 {[%clk 0:01:52.9]} 18. Nxc4
{[%clk 0:02:23.7]} 18... dxc4 {[%clk 0:01:52.6]} 19. Bb1 {[%clk 0:02:23.8]}
19... f5 {[%clk 0:01:46.4]} 20. Ne5 {[%clk 0:02:16.3]} 20... Bf6 {[%clk
0:01:45.6]} 21. Be1 {[%clk 0:02:06.5]} 21... Qe7 {[%clk 0:01:39.4]} 22. a3
{[%clk 0:02:00.6]} 22... a5 {[%clk 0:01:39.4]} 23. Ba2 {[%clk 0:01:54.8]} 23...
Bd5 {[%clk 0:01:34.5]} 24. g4 {[%clk 0:01:55.4]} 24... g6 {[%clk 0:01:31.7]} 25.
g5 {[%clk 0:01:56.1]} 25... Bxe5 {[%clk 0:01:28.8]} 26. dxe5 {[%clk 0:01:52.4]}
26... Rfd8 {[%clk 0:01:20.8]} 27. Qh6 {[%clk 0:01:52.9]} 27... Qc5 {[%clk
0:01:15.2]} 28. Bf2 {[%clk 0:01:46.8]} 28... c3 {[%clk 0:01:00.5]} 29. Bxd5
{[%clk 0:01:46.6]} 29... Rxd5 {[%clk 0:01:00.8]} 30. bxc3 {[%clk 0:01:41.1]}
30... Rcd8 {[%clk 0:00:48]} 31. Rxd5 {[%clk 0:01:35.7]} 31... Rxd5 {[%clk
0:00:48.6]} 32. Qh4 {[%clk 0:01:29.8]} 32... Rd2 {[%clk 0:00:45.3]} 33. Kg2
{[%clk 0:01:27.7]} 33... Qxe3 {[%clk 0:00:42.1]} 34. c4 {[%clk 0:01:16.2]} 34...
Qe2 {[%clk 0:00:28.3]} 35. a4 {[%clk 0:01:08.8]} 35... Qxc4 {[%clk 0:00:28.6]}
36. Qh3 {[%clk 0:01:07.3]} 36... Qxa4 {[%clk 0:00:24.9]} 37. Qe3 {[%clk
0:01:05.9]} 37... Qa2 {[%clk 0:00:18.2]} 38. Qxb6 {[%clk 0:01:03.1]} 38... Rxf2+
{[%clk 0:00:18.6]} 39. Rxf2 {[%clk 0:01:04.4]} 39... Qxf2+ {[%clk 0:00:19.5]}
40. Qxf2 {[%clk 0:01:05.4]} 40... Nxf2 {[%clk 0:00:20.5]} 41. Kxf2 {[%clk
0:01:07.3]} 41... Kf7 {[%clk 0:00:20.7]} 42. Ke3 {[%clk 0:01:08.9]} 42... Ke7
{[%clk 0:00:22.3]} 43. Kd4 {[%clk 0:01:10.2]} 43... Kd7 {[%clk 0:00:23.9]} 44.
Kc5 {[%clk 0:01:11.7]} 44... Kc7 {[%clk 0:00:25.2]} 45. Kb5 {[%clk 0:01:10.9]}
45... a4 {[%clk 0:00:26.6]} 46. Kxa4 {[%clk 0:01:11.8]} 46... Kc6 {[%clk
0:00:28.5]} 47. Ka5 {[%clk 0:01:10.3]} 47... Kd5 {[%clk 0:00:30.4]} 48. Kb6
{[%clk 0:01:11.2]} 48... Ke4 {[%clk 0:00:31.4]} 49. Kc6 {[%clk 0:01:11.8]} 49...
Kxf4 {[%clk 0:00:32.9]} 50. Kd6 {[%clk 0:01:13.4]} 50... Kxg5 {[%clk 0:00:34]}
51. Kxe6 {[%clk 0:01:14.6]} 51... f4 {[%clk 0:00:35.9]} 52. Kd7 {[%clk
0:01:11.5]} 52... f3 {[%clk 0:00:37.3]} 53. e6 {[%clk 0:01:12.7]} 53... f2
{[%clk 0:00:38.7]} 54. e7 {[%clk 0:01:14.2]} 54... f1=Q {[%clk 0:00:40.1]} 55.
e8=Q {[%clk 0:01:15.5]} 55... Qb5+ {[%clk 0:00:39.1]} 56. Ke7 {[%clk 0:01:16]}
56... Qxe8+ {[%clk 0:00:40.2]} 57. Kxe8 {[%clk 0:01:17.9]} 57... Kh4 {[%clk
0:00:41.3]} 58. Kf7 {[%clk 0:01:18.6]} 58... g5 {[%clk 0:00:36.8]} 59. Kf6
{[%clk 0:01:19.5]} 59... h5 {[%clk 0:00:33.7]} 60. Kf5 {[%clk 0:01:20.6]} 60...
g4 {[%clk 0:00:34.2]} 61. Kg6 {[%clk 0:01:17.3]} 61... Kh3 {[%clk 0:00:25]} 62.
Kxh5 {[%clk 0:01:17.8]} 62... g3 {[%clk 0:00:25.7]} 63. hxg3 {[%clk 0:01:18.7]}
63... Kxg3 {[%clk 0:00:27.6]} 1/2-1/2

[Event "*** Titled Tuesday Blitz"]
[Site "Chess.com"]
[Date "2018.08.07"]
[Round "5"]
[White "LucaBrasi1968"]
[Black "KamilPlichta"]
[Result "0-1"]
[WhiteElo "2463"]
[BlackElo "2605"]
[TimeControl "180+2"]
[EndTime "14:05:11 PDT"]
[Termination "KamilPlichta won by resignation"]

1. d4 {[%clk 0:03:01.9]} 1... g6 {[%clk 0:03:00.5]} 2. c3 {[%clk 0:02:55.8]}
2... Bg7 {[%clk 0:03:01.7]} 3. Bg5 {[%clk 0:02:56.2]} 3... d6 {[%clk 0:03:02.1]}
4. Nf3 {[%clk 0:02:55]} 4... a6 {[%clk 0:03:03.1]} 5. a4 {[%clk 0:02:53.9]} 5...
b6 {[%clk 0:03:04.1]} 6. e3 {[%clk 0:02:54.4]} 6... Bb7 {[%clk 0:03:05.3]} 7.
Bd3 {[%clk 0:02:54.6]} 7... Nd7 {[%clk 0:03:06.5]} 8. Nbd2 {[%clk 0:02:54.7]}
8... h6 {[%clk 0:03:07.4]} 9. Bh4 {[%clk 0:02:55.1]} 9... Ngf6 {[%clk
0:02:59.1]} 10. Qe2 {[%clk 0:02:53.5]} 10... e5 {[%clk 0:02:53.6]} 11. e4 {[%clk
0:02:48.6]} 11... Qe7 {[%clk 0:02:53.2]} 12. O-O {[%clk 0:02:48.2]} 12... g5
{[%clk 0:02:48.4]} 13. Bg3 {[%clk 0:02:48.6]} 13... h5 {[%clk 0:02:49.9]} 14. h4
{[%clk 0:02:45.8]} 14... g4 {[%clk 0:02:47.1]} 15. Ng5 {[%clk 0:02:46.6]} 15...
Nh7 {[%clk 0:02:26.9]} 16. Nxh7 {[%clk 0:02:20.5]} 16... Rxh7 {[%clk 0:02:27.8]}
17. dxe5 {[%clk 0:02:11.5]} 17... Bxe5 {[%clk 0:02:18.8]} 18. Nc4 {[%clk
0:02:06.4]} 18... a5 {[%clk 0:02:09]} 19. Nxe5 {[%clk 0:02:06.3]} 19... Nxe5
{[%clk 0:02:07.3]} 20. Bb5+ {[%clk 0:02:07]} 20... Kf8 {[%clk 0:01:58.9]} 21.
Qe3 {[%clk 0:01:57.5]} 21... Kg8 {[%clk 0:01:52.7]} 22. Bf4 {[%clk 0:01:48.5]}
22... Ng6 {[%clk 0:01:42.9]} 23. Bg5 {[%clk 0:01:43.8]} 23... f6 {[%clk
0:01:44.1]} 24. Bc4+ {[%clk 0:01:33.9]} 24... Kg7 {[%clk 0:01:15.2]} 25. Bf4
{[%clk 0:01:10.8]} 25... Nxf4 {[%clk 0:01:03.9]} 26. Qxf4 {[%clk 0:01:11.2]}
26... Qxe4 {[%clk 0:01:05.4]} 27. Qxe4 {[%clk 0:01:02.9]} 27... Bxe4 {[%clk
0:01:06.5]} 28. Rfe1 {[%clk 0:01:04.1]} 28... Re8 {[%clk 0:01:02.9]} 29. f3
{[%clk 0:00:39.2]} 29... gxf3 {[%clk 0:01:02]} 30. gxf3 {[%clk 0:00:39.8]} 30...
Bc6 {[%clk 0:01:03.5]} 31. Rxe8 {[%clk 0:00:39.6]} 31... Bxe8 {[%clk 0:01:04.6]}
32. b3 {[%clk 0:00:36.8]} 32... Kf8 {[%clk 0:00:59]} 33. Kf2 {[%clk 0:00:35.2]}
33... Re7 {[%clk 0:00:59.1]} 34. Rg1 {[%clk 0:00:34.3]} 34... Bf7 {[%clk
0:00:58.5]} 35. Bxf7 {[%clk 0:00:33.2]} 35... Kxf7 {[%clk 0:00:59.9]} 36. Rd1
{[%clk 0:00:31.6]} 36... Re5 {[%clk 0:01:00.8]} 37. Rd4 {[%clk 0:00:31.2]} 37...
Rc5 {[%clk 0:01:01.6]} 38. c4 {[%clk 0:00:32]} 38... Re5 {[%clk 0:01:03.2]} 39.
Rd1 {[%clk 0:00:32.6]} 39... Re8 {[%clk 0:00:59.9]} 40. Rg1 {[%clk 0:00:32.6]}
40... Rd8 {[%clk 0:01:00.9]} 41. Rd1 {[%clk 0:00:32.2]} 41... c6 {[%clk
0:01:01.5]} 42. Ke3 {[%clk 0:00:33.3]} 42... d5 {[%clk 0:00:58.9]} 43. Kf4
{[%clk 0:00:33.6]} 43... d4 {[%clk 0:00:53]} 44. Ke4 {[%clk 0:00:22.1]} 44...
Re8+ {[%clk 0:00:52.3]} 45. Kf4 {[%clk 0:00:22.3]} 45... c5 {[%clk 0:00:53.5]}
46. Rb1 {[%clk 0:00:14.7]} 46... Re3 {[%clk 0:00:52.7]} 47. Rb2 {[%clk 0:00:16]}
47... Ke6 {[%clk 0:00:53.4]} 48. Rb1 {[%clk 0:00:17.2]} 48... Re2 {[%clk
0:00:53.7]} 49. Rd1 {[%clk 0:00:15.7]} 49... Rh2 {[%clk 0:00:45.9]} 50. Kg3
{[%clk 0:00:15.2]} 50... Rb2 {[%clk 0:00:47]} 51. Rd3 {[%clk 0:00:15.7]} 51...
Kf5 {[%clk 0:00:48.4]} 0-1

[Event "*** Titled Tuesday Blitz"]
[Site "Chess.com"]
[Date "2018.08.07"]
[Round "5"]
[White "hypert"]
[Black "b_6"]
[Result "1-0"]
[WhiteElo "2349"]
[BlackElo "2366"]
[TimeControl "180+2"]
[EndTime "14:05:13 PDT"]
[Termination "hypert won by resignation"]

1. e4 {[%clk 0:03:01.9]} 1... e6 {[%clk 0:02:55.8]} 2. d4 {[%clk 0:03:01.5]}
2... d5 {[%clk 0:02:55.1]} 3. Nc3 {[%clk 0:03:03.2]} 3... Bb4 {[%clk 0:02:55.5]}
4. e5 {[%clk 0:03:02.8]} 4... Ne7 {[%clk 0:02:56.1]} 5. a3 {[%clk 0:03:03.6]}
5... Bxc3+ {[%clk 0:02:57.3]} 6. bxc3 {[%clk 0:03:05.5]} 6... c5 {[%clk
0:02:58.8]} 7. a4 {[%clk 0:03:06.8]} 7... Qa5 {[%clk 0:02:54.6]} 8. Qd2 {[%clk
0:03:05.6]} 8... Nbc6 {[%clk 0:02:50]} 9. Nf3 {[%clk 0:03:05.9]} 9... Bd7 {[%clk
0:02:47.5]} 10. Bb5 {[%clk 0:03:01.2]} 10... Nxe5 {[%clk 0:02:02.1]} 11. Nxe5
{[%clk 0:02:32.6]} 11... Bxb5 {[%clk 0:02:01.5]} 12. Ba3 {[%clk 0:02:34]} 12...
Ba6 {[%clk 0:01:17.6]} 13. Bxc5 {[%clk 0:02:32.5]} 13... Qc7 {[%clk 0:00:52.6]}
14. Qf4 {[%clk 0:02:11.3]} 14... Nc6 {[%clk 0:00:43]} 15. Kd2 {[%clk 0:01:52.5]}
15... Nxe5 {[%clk 0:00:40.3]} 16. Qxe5 {[%clk 0:01:52.9]} 16... Qxe5 {[%clk
0:00:40.9]} 17. dxe5 {[%clk 0:01:54.1]} 17... Kd7 {[%clk 0:00:36.2]} 18. h4
{[%clk 0:01:54.9]} 18... Rhc8 {[%clk 0:00:36.5]} 19. Bd4 {[%clk 0:01:54]} 19...
Ke7 {[%clk 0:00:21.5]} 20. h5 {[%clk 0:01:55.1]} 20... h6 {[%clk 0:00:22.3]} 21.
a5 {[%clk 0:01:54]} 21... Bb5 {[%clk 0:00:21.9]} 22. Rab1 {[%clk 0:01:51.4]}
22... a6 {[%clk 0:00:22.7]} 23. Rb4 {[%clk 0:01:51.8]} 23... Rc4 {[%clk
0:00:23.2]} 24. Rh3 {[%clk 0:01:44]} 24... Rac8 {[%clk 0:00:21.8]} 25. Rg3
{[%clk 0:01:38.7]} 25... Kf8 {[%clk 0:00:21.6]} 26. f4 {[%clk 0:01:35]} 26...
R8c6 {[%clk 0:00:18.6]} 27. Rh3 {[%clk 0:01:33.4]} 27... Rc8 {[%clk 0:00:19.1]}
28. Rh1 {[%clk 0:01:34.1]} 28... R8c6 {[%clk 0:00:20.3]} 29. g4 {[%clk
0:01:34.5]} 29... Rxb4 {[%clk 0:00:15.5]} 30. cxb4 {[%clk 0:01:34.8]} 30... Rc4
{[%clk 0:00:17.1]} 31. c3 {[%clk 0:01:35.3]} 31... Bd7 {[%clk 0:00:18.4]} 32.
Rf1 {[%clk 0:01:34.5]} 32... g6 {[%clk 0:00:17.6]} 33. Rh1 {[%clk 0:01:32.6]}
33... Kg7 {[%clk 0:00:18.6]} 34. g5 {[%clk 0:01:33.2]} 34... gxh5 {[%clk
0:00:18.7]} 35. Rxh5 {[%clk 0:01:32.9]} 35... hxg5 {[%clk 0:00:19.6]} 36. Rxg5+
{[%clk 0:01:34.1]} 36... Kf8 {[%clk 0:00:20.5]} 37. Kd3 {[%clk 0:01:34.8]} 37...
Bb5 {[%clk 0:00:13.1]} 38. Ke3 {[%clk 0:01:34.9]} 38... Ke7 {[%clk 0:00:13.8]}
39. f5 {[%clk 0:01:35.6]} 39... exf5 {[%clk 0:00:13.8]} 40. Rxf5 {[%clk
0:01:36.5]} 40... Rc8 {[%clk 0:00:14.3]} 41. Bc5+ {[%clk 0:01:36.6]} 41... Ke6
{[%clk 0:00:15.3]} 42. Kf4 {[%clk 0:01:37.9]} 42... Be8 {[%clk 0:00:11.7]} 43.
Rf6+ {[%clk 0:01:39.2]} 43... Kd7 {[%clk 0:00:13.1]} 44. Rd6+ {[%clk 0:01:36.9]}
44... Kc7 {[%clk 0:00:14.6]} 45. Kf5 {[%clk 0:01:36.7]} 45... Bd7+ {[%clk
0:00:14.5]} 46. Kf6 {[%clk 0:01:37.9]} 46... Be6 {[%clk 0:00:15.8]} 47. Rb6
{[%clk 0:01:21]} 47... Re8 {[%clk 0:00:15.6]} 48. b5 {[%clk 0:01:17.3]} 48...
axb5 {[%clk 0:00:16.5]} 49. Bd6+ {[%clk 0:01:16.6]} 49... Kc8 {[%clk 0:00:17.5]}
50. Rxb5 {[%clk 0:01:18.2]} 50... Rd8 {[%clk 0:00:17.1]} 51. Rc5+ {[%clk
0:01:17.5]} 51... Kd7 {[%clk 0:00:17.9]} 52. Rc7+ {[%clk 0:01:18.5]} 52... Ke8
{[%clk 0:00:19.3]} 53. Re7+ {[%clk 0:01:18.9]} 53... Kf8 {[%clk 0:00:20.3]} 54.
Rxb7+ {[%clk 0:01:20.1]} 54... Kg8 {[%clk 0:00:21.1]} 55. a6 {[%clk 0:01:17.7]}
55... Ra8 {[%clk 0:00:17]} 56. a7 {[%clk 0:01:18.1]} 56... Kh7 {[%clk
0:00:16.2]} 57. Bb8 {[%clk 0:01:15.2]} 57... Kh6 {[%clk 0:00:13.8]} 58. Rxf7
{[%clk 0:01:14.3]} 58... Bxf7 {[%clk 0:00:13.5]} 59. Kxf7 {[%clk 0:01:16.2]}
59... d4 {[%clk 0:00:06.7]} 60. cxd4 {[%clk 0:01:16.3]} 1-0

[Event "*** Titled Tuesday Blitz"]
[Site "Chess.com"]
[Date "2018.08.07"]
[Round "5"]
[White "Hrant_ChessMood"]
[Black "JozefKneht"]
[Result "0-1"]
[WhiteElo "2979"]
[BlackElo "2350"]
[TimeControl "180+2"]
[EndTime "14:05:16 PDT"]
[Termination "JozefKneht won on time"]

1. d4 {[%clk 0:02:48.5]} 1... d5 {[%clk 0:02:59.1]} 2. c4 {[%clk 0:02:49.4]}
2... c6 {[%clk 0:02:58.9]} 3. Nf3 {[%clk 0:02:50.8]} 3... Nf6 {[%clk 0:02:58.6]}
4. Nc3 {[%clk 0:02:52.2]} 4... dxc4 {[%clk 0:02:58.2]} 5. e4 {[%clk 0:02:53.3]}
5... b5 {[%clk 0:02:56.9]} 6. Be2 {[%clk 0:02:54.6]} 6... e6 {[%clk 0:02:54.4]}
7. O-O {[%clk 0:02:54.4]} 7... a6 {[%clk 0:02:53.8]} 8. e5 {[%clk 0:02:26.4]}
8... Nd5 {[%clk 0:02:52.3]} 9. Ne4 {[%clk 0:02:27.9]} 9... Bb7 {[%clk
0:02:45.5]} 10. Bg5 {[%clk 0:02:24.6]} 10... Qc7 {[%clk 0:02:42.4]} 11. Rc1
{[%clk 0:02:08.3]} 11... h6 {[%clk 0:02:40.5]} 12. Bh4 {[%clk 0:02:07.9]} 12...
Nd7 {[%clk 0:02:31.5]} 13. b3 {[%clk 0:02:08.4]} 13... cxb3 {[%clk 0:02:30.1]}
14. Qxb3 {[%clk 0:02:08]} 14... Qb6 {[%clk 0:02:09.2]} 15. a4 {[%clk 0:01:40.9]}
15... Bb4 {[%clk 0:02:04.9]} 16. Nd6+ {[%clk 0:01:30.7]} 16... Bxd6 {[%clk
0:02:03.9]} 17. exd6 {[%clk 0:01:32.6]} 17... b4 {[%clk 0:01:55.3]} 18. Rfd1
{[%clk 0:01:15.2]} 18... a5 {[%clk 0:01:53.4]} 19. Ne5 {[%clk 0:01:15]} 19... g5
{[%clk 0:01:42.3]} 20. Bg3 {[%clk 0:01:08.8]} 20... Nxe5 {[%clk 0:01:15.1]} 21.
Bxe5 {[%clk 0:00:57.6]} 21... f6 {[%clk 0:01:14.3]} 22. Bh5+ {[%clk 0:00:52.1]}
22... Kd7 {[%clk 0:01:12.3]} 23. Bg3 {[%clk 0:00:54]} 23... Rhf8 {[%clk
0:00:57.4]} 24. Rc5 {[%clk 0:00:54.3]} 24... Rad8 {[%clk 0:00:39]} 25. Rdc1
{[%clk 0:00:53.9]} 25... Nf4 {[%clk 0:00:26.9]} 26. Bxf4 {[%clk 0:00:47.5]}
26... gxf4 {[%clk 0:00:28.8]} 27. Bf3 {[%clk 0:00:42.9]} 27... Kxd6 {[%clk
0:00:28.3]} 28. Bxc6 {[%clk 0:00:36.5]} 28... Bxc6 {[%clk 0:00:26.2]} 29. Rxc6+
{[%clk 0:00:26.7]} 29... Qxc6 {[%clk 0:00:26.1]} 30. Rxc6+ {[%clk 0:00:28.6]}
30... Kxc6 {[%clk 0:00:27.1]} 31. Qxe6+ {[%clk 0:00:30.5]} 31... Rd6 {[%clk
0:00:20.1]} 32. Qc4+ {[%clk 0:00:30.8]} 32... Kb7 {[%clk 0:00:20.8]} 33. h4
{[%clk 0:00:11.8]} 33... Rc8 {[%clk 0:00:19.6]} 34. Qd3 {[%clk 0:00:04.9]} 34...
Rb6 {[%clk 0:00:18.8]} 35. Qb3 {[%clk 0:00:04.9]} 35... Rc3 {[%clk 0:00:18]} 36.
Qd5+ {[%clk 0:00:05.9]} 36... Ka7 {[%clk 0:00:17.7]} 37. Qxa5+ {[%clk
0:00:06.8]} 37... Kb7 {[%clk 0:00:18.1]} 38. Qd5+ {[%clk 0:00:07.9]} 38... Ka7
{[%clk 0:00:18.5]} 39. Qa5+ {[%clk 0:00:03.4]} 39... Kb7 {[%clk 0:00:18.2]} 40.
Qd5+ {[%clk 0:00:04.5]} 40... Ka7 {[%clk 0:00:19.2]} 41. a5 {[%clk 0:00:06.4]}
41... Rb7 {[%clk 0:00:19.7]} 42. a6 {[%clk 0:00:03.1]} 42... Kxa6 {[%clk
0:00:20.1]} 0-1